fUST/lending_fUST_20260330
["ID","MTS","AMOUNT","RATE_DAILY","PERIOD"]
[419087415,1774857040736,-500.0,0.00021917,9]
[419087416,1774857040746,-500.0,0.00021917,9]
[419087417,1774857040756,-432.05,0.00021918,2]
[419087418,1774857040766,-432.05,0.00021918,2]
[419087419,1774857040776,-432.05,0.00021918,2]
[419087420,1774857040787,-432.05,0.00021918,2]
[419087421,1774857040797,-432.05,0.00021918,2]
[419087422,1774857040807,-432.05,0.00021918,2]
[419087423,1774857040817,-432.05,0.00021918,2]
[419087424,1774857040826,-151.0,0.00021918,2]
[419087425,1774857040836,-151.0,0.00021918,2]
[419087426,1774857040847,-151.0,0.00021918,2]
[419087427,1774857040857,-151.0,0.00021918,2]
[419087428,1774857040867,-151.0,0.00021918,2]
[419087429,1774857040877,-151.0,0.00021918,2]
[419087430,1774857040887,-151.0,0.00021918,2]
[419087431,1774857040896,-250.914382,0.00021918,2]
[419087432,1774857040906,-298.851574,0.00021918,2]
[419087433,1774857040916,-298.851574,0.00021918,2]
[419087434,1774857040926,-298.851574,0.00021918,2]
[419087435,1774857040936,-298.851574,0.00021918,2]
[419087436,1774857040946,-298.851574,0.00021918,2]
[419087437,1774857040955,-298.851574,0.00021918,2]
[419087438,1774857040965,-298.851574,0.00021918,2]
[419087439,1774857040975,-151.0,0.00021918,2]
[419087440,1774857040985,-151.0,0.00021918,2]
[419087441,1774857040996,-298.851574,0.00021918,2]
[419087442,1774857041006,-298.851574,0.00021918,2]
[419087443,1774857041016,-298.851574,0.00021918,2]
[419087444,1774857041026,-298.851574,0.00021918,2]
[419087445,1774857041035,-298.851574,0.00021918,2]
[419087446,1774857041045,-298.851574,0.00021918,2]
[419087448,1774857041055,-298.851574,0.00021918,2]
[419087450,1774857041065,-298.851574,0.00021918,2]
[419087451,1774857041075,-298.851574,0.00021918,2]
[419087452,1774857041085,-298.851574,0.00021918,2]
[419087453,1774857041095,-298.851574,0.00021918,2]
[419087454,1774857041105,-298.851578,0.00021918,2]
[419087455,1774857041115,-877.026199,0.00021918,2]
[419087456,1774857041126,-877.026199,0.00021918,2]
[419087457,1774857041136,-877.026199,0.00021918,2]
[419087458,1774857041147,-877.026199,0.00021918,2]
[419087459,1774857041156,-877.026199,0.00021918,2]
[419087460,1774857041167,-877.026199,0.00021918,2]
[419087461,1774857041178,-877.026199,0.00021918,2]
[419087462,1774857041189,-372.60988648,0.00021918,2]
[419087477,1774857044319,-500.0,0.00021915,2]
[419087478,1774857044329,-500.0,0.00021915,2]
[419087479,1774857044340,-500.0,0.00021915,2]
[419087480,1774857044351,-500.0,0.00021915,2]
[419087481,1774857044361,-500.0,0.00021915,2]
[419087482,1774857044373,-500.0,0.00021915,2]
[419087483,1774857044383,-500.0,0.00021915,2]
[419087484,1774857044393,-500.0,0.00021915,2]
[419087485,1774857044404,-1018.839766,0.00021918,2]
[419087486,1774857044414,-1018.839766,0.00021918,2]
[419087487,1774857044423,-1018.839766,0.00021918,2]
[419087488,1774857044433,-1018.839766,0.00021918,2]
[419087489,1774857044443,-1018.839766,0.00021918,2]
[419087490,1774857044454,-1018.839766,0.00021918,2]
[419087491,1774857044464,-1018.839766,0.00021918,2]
[419087492,1774857044474,-1018.839766,0.00021918,2]
[419087493,1774857044485,-1018.839766,0.00021918,2]
[419087494,1774857044495,-151.0,0.00021918,2]
[419087495,1774857044506,-1018.839766,0.00021918,2]
[419087496,1774857044516,-151.0,0.00021918,2]
[419087497,1774857044527,-151.0,0.00021918,2]
[419087498,1774857044538,-151.0,0.00021918,2]
[419087499,1774857044547,-151.0,0.00021918,2]
[419087500,1774857044556,-151.0,0.00021918,2]
[419087501,1774857044567,-151.0,0.00021918,2]
[419087502,1774857044577,-151.0,0.00021918,2]
[419087503,1774857044587,-151.0,0.00021918,2]
[419087504,1774857044597,-223.556005,0.00021918,2]
[419087505,1774857044607,-212.01270472,0.00021918,2]
[419087511,1774857046674,-1000.0,0.00019999,2]
[419087512,1774857046684,-541.66666667,0.00019999,2]
[419087650,1774858232559,-988.97827215,7e-05,2]
[419087651,1774858232703,-839.73316369,7e-05,2]
[419088143,1774858243901,-127.56119589,7e-05,2]
[419088144,1774858243912,-519.0,7e-05,2]
[419088145,1774858243923,-28418.99278363,7.6e-05,2]
[419088146,1774858243934,-1200.0,0.00013698,2]
[419088147,1774858243944,-1000.0,0.00013699,2]
[419088148,1774858243955,-300.0,0.00017337,2]
[419088149,1774858243966,-1064.39872972,0.00018712,2]
[419088150,1774858243977,-420.0,0.00018929,2]
[419088151,1774858243988,-647.07730597,0.00019326,2]
[419088152,1774858243998,-329.25483488,0.00019345,2]
[419088153,1774858244009,-343.035983,0.00019542,2]
[419088154,1774858244019,-1000.0,0.0001956,2]
[419088155,1774858244030,-738.27773764,0.00019781,2]
[419088157,1774858244044,-410.15429869,0.00019781,2]
[419088158,1774858244054,-1312.4937558,0.00019781,2]
[419088159,1774858244065,-2050.77149343,0.00019781,2]
[419088161,1774858244075,-2183.0,0.0002021,2]
[419088163,1774858244085,-1395.0,0.0002021,2]
[419088165,1774858244095,-184.0,0.0002021,2]
[419088167,1774858244105,-587.0,0.00020668,2]
[419088169,1774858244115,-500.0,0.00020821,9]
[419088171,1774858244125,-273.08055506,0.00020822,2]
[419088172,1774858244137,-491.54499911,0.00020822,2]
[419088174,1774858244148,-873.8577762,0.00020822,2]
[419088176,1774858244158,-1365.40277531,0.00020822,2]
[419088177,1774858244169,-284.0592872,0.00020822,2]
[419088180,1774858244181,-641.8246132,0.00020889,2]
[419088181,1774858244195,-1652.22384559,0.00020889,2]
[419088182,1774858244210,-2231.22126743,0.00021437,2]
[419088183,1774858244227,-718.93657216,0.00021437,2]
[419088185,1774858244241,-500.0,0.00021808,9]
[419088186,1774858244253,-500.0,0.00021808,9]
[419088187,1774858244265,-500.0,0.00021808,2]
[419088189,1774858244279,-500.0,0.00021808,2]
[419088191,1774858244293,-500.0,0.00021808,2]
[419088193,1774858244306,-139.32062406,0.00021808,2]
[419088200,1774858244558,-360.67937594,0.00021808,2]
[419088201,1774858244571,-500.0,0.00021808,2]
[419088202,1774858244585,-500.0,0.00021808,2]
[419088203,1774858244599,-444.37776028,0.00021808,2]
[419088207,1774858246953,-5000.0,6.93e-05,2]
[419088208,1774858246965,-1000.0,0.00018406,2]
[419088209,1774858246978,-306.719,0.00018406,2]
[419088210,1774858246990,-55.62223972,0.00021808,2]
[419088211,1774858247004,-487.71023775,0.00021808,2]
[419088278,1774859432996,-525.0,7.447e-05,2]
[419088279,1774859433006,-594.71724561,7.447e-05,2]
[419088280,1774859433018,-731.83804094,7.447e-05,2]
[419088281,1774859433028,-2329.31789192,7.547e-05,2]
[419088282,1774859433049,-2670.68210808,7.547e-05,2]
[419088283,1774859433060,-688.44512381,7.7e-05,2]
[419088284,1774859433070,-154.0,0.0001284,2]
[419088285,1774859433080,-300.0,0.00013382,2]
[419088286,1774859433090,-300.0,0.00013384,2]
[419088287,1774859433101,-606.0,0.00013384,2]
[419088288,1774859433112,-300.0,0.00013384,2]
[419088289,1774859433122,-154.0,0.00013385,2]
[419088290,1774859433133,-192.32363525,0.00013385,2]
[419088291,1774859433143,-182.9199373,0.00013385,2]
[419088292,1774859433152,-975.33161023,0.00013385,2]
[419088390,1774859441663,-6950.0,0.00013385,2]
[419088393,1774859441676,-657.01944389,0.00013385,2]
[419088397,1774859441713,-1019.05201729,0.00013385,2]
[419088583,1774859443797,-941.81791522,0.00013251,2]
[419088584,1774859443810,-4058.18208478,0.00013251,2]
[419088585,1774859443821,-2833.70500089,0.00013385,2]
[419088586,1774859443831,-500.0,0.000134,2]
[419088587,1774859443841,-500.0,0.000134,2]
[419088589,1774859443852,-1000.0,0.00013699,2]
[419088590,1774859443863,-1000.06817871,0.00013948,2]
[419088591,1774859443873,-500.88470264,0.00013948,2]
[419088593,1774859443884,-420.0,0.00014672,2]
[419088595,1774859443895,-500.0,0.00015276,2]
[419088597,1774859443906,-12435.1080723,0.00015277,2]
[419088599,1774859443916,-587.0,0.00016084,2]
[419088601,1774859443927,-213.79359379,0.00017068,2]
[419088603,1774859443937,-500.0,0.00017168,2]
[419088605,1774859443947,-151.0,0.00017168,2]
[419088607,1774859443958,-151.0,0.00017168,2]
[419088609,1774859443968,-151.0,0.00017168,2]
[419088611,1774859443978,-12435.1080723,0.00017169,2]
[419088613,1774859443988,-823.0,0.00017632,2]
[419088615,1774859443999,-356.41704678,0.00017852,2]
[419088617,1774859444009,-407.33376775,0.00017852,2]
[419088619,1774859444020,-636.45901211,0.00017852,2]
[419088621,1774859444031,-1964.21381645,0.0001838,2]
[419088623,1774859444042,-213.79359375,0.00018544,2]
[419088625,1774859444052,-324.31454619,0.00018604,2]
[419088628,1774859444062,-915.58447646,0.00018772,2]
[419088630,1774859444227,-151.0,0.0001906,2]
[419088632,1774859444238,-151.0,0.0001906,2]
[419088633,1774859444248,-151.0,0.0001906,2]
[419088635,1774859444258,-6655.57508157,0.0001906,2]
[419088636,1774859444271,-5779.53299073,0.0001906,2]
[419088637,1774859444281,-500.0,0.00019328,9]
[419088638,1774859444290,-1152.0,0.00019329,2]
[419088639,1774859444301,-1308.05490488,0.00019483,2]
[419088640,1774859444318,-1341.84863434,0.00019483,2]
[419088641,1774859444327,-182.9199373,0.00019762,2]
[419088642,1774859444338,-158.10185142,0.00019781,2]
[419088643,1774859444351,-213.79359375,0.0002002,2]
[419088644,1774859444361,-988.33,0.00020812,10]
[419088645,1774859444372,-823.61,0.00020812,10]
[419088646,1774859444382,-500.0,0.00020821,2]
[419088647,1774859444392,-500.0,0.00020821,2]
[419088648,1774859444402,-500.0,0.00020821,2]
[419088649,1774859444412,-500.0,0.00020821,2]
[419088650,1774859444422,-500.0,0.00020821,2]
[419088651,1774859444432,-500.0,0.00020821,2]
[419088652,1774859444442,-500.0,0.00020821,2]
[419088653,1774859444453,-500.0,0.00020821,2]
[419088654,1774859444463,-500.0,0.00020821,2]
[419088655,1774859444474,-500.0,0.00020821,2]
[419088656,1774859444484,-500.0,0.00020821,2]
[419088657,1774859444494,-500.0,0.00020821,2]
[419088658,1774859444504,-500.0,0.00020821,2]
[419088659,1774859444514,-500.0,0.00020821,2]
[419088660,1774859444524,-500.0,0.00020821,2]
[419088661,1774859444534,-500.0,0.00020821,2]
[419088662,1774859444543,-500.0,0.00020821,2]
[419088663,1774859444554,-500.0,0.00020821,2]
[419088664,1774859444564,-500.0,0.00020821,2]
[419088665,1774859444575,-500.0,0.00020821,2]
[419088667,1774859444584,-500.0,0.00020821,2]
[419088668,1774859444596,-500.0,0.00020821,2]
[419088669,1774859444607,-187.93532005,0.00020821,2]
[419088670,1774859444617,-500.0,0.00020821,2]
[419088672,1774859444628,-500.0,0.00020821,2]
[419088673,1774859444638,-500.0,0.00020821,2]
[419088674,1774859444649,-500.0,0.00020821,2]
[419088675,1774859444659,-325.79880591,0.00020822,2]
[419088676,1774859444669,-586.43785064,0.00020822,2]
[419088677,1774859444680,-1042.55617892,0.00020822,2]
[419088678,1774859444691,-1628.99402956,0.00020822,2]
[419088680,1774859444701,-2345.75140257,0.00020822,2]
[419088682,1774859444711,-3192.82829794,0.00020822,2]
[419088684,1774859444722,-4170.22471568,0.00020822,2]
[419088685,1774859444732,-5272.66271513,0.00020822,2]
[419088686,1774859444742,-401.0764285,0.00020822,2]
[419088687,1774859444752,-458.37306115,0.00020822,2]
[419088688,1774859444763,-716.20790804,0.00020822,2]
[419088689,1774859444773,-1030.30804819,0.00020822,2]
[419088690,1774859444783,-156.82605751,0.00020868,2]
[419088691,1774859444794,-599.60298507,0.00020868,2]
[419088692,1774859444804,-267.0,0.000209,2]
[419088694,1774859444815,-205.0,0.000209,2]
[419088695,1774859444825,-153.93557913,0.000209,2]
[419088696,1774859444835,-1000.0,0.00021,21]
[419088697,1774859444845,-1613.0,0.00021189,2]
[419088698,1774859444855,-151.0,0.00021332,2]
[419088699,1774859444865,-151.0,0.00021332,2]
[419088701,1774859444876,-151.0,0.00021332,2]
[419088704,1774859444886,-151.0,0.00021332,2]
[419088706,1774859444896,-151.0,0.00021332,2]
[419088707,1774859444906,-181.349724,0.00021332,2]
[419088709,1774859444917,-500.0,0.00021335,9]
[419088712,1774859444927,-500.0,0.00021336,9]
[419088714,1774859444939,-467.18022555,0.00021336,9]
[419088715,1774859444949,-200.0,0.00021371,2]
[419088716,1774859444959,-500.0,0.00021373,2]
[419088718,1774859444969,-621.78829552,0.00021416,2]
[419088719,1774859444979,-213.79359375,0.00021496,2]
[419088721,1774859444989,-184.0,0.00021631,2]
[419088723,1774859444999,-342.10528346,0.000219,34]
[419088725,1774859445009,-267.0,0.000219,2]
[419088727,1774859445020,-151.0,0.000219,3]
[419088728,1774859445030,-151.0,0.000219,3]
[419088729,1774859445041,-205.0,0.000219,2]
[419088730,1774859445051,-151.0,0.000219,2]
[419088731,1774859445062,-151.0,0.000219,2]
[419088732,1774859445073,-3972.22256547,0.000219,2]
[419088733,1774859445083,-1471.849277,0.000219,2]
[419088734,1774859445093,-312.74458893,0.00021917,2]
[419088735,1774859445104,-500.0,0.00021917,2]
[419088736,1774859445115,-500.0,0.00021917,2]
[419088737,1774859445125,-500.0,0.00021917,2]
[419088738,1774859445135,-373.30908501,0.00021917,2]
[419088739,1774859445146,-500.0,0.00021917,2]
[419088740,1774859445155,-200.0,0.00021917,2]
[419088741,1774859445165,-200.0,0.00021917,2]
[419088742,1774859445176,-200.0,0.00021917,2]
[419088743,1774859445186,-484.430722,0.00021918,2]
[419088744,1774859445197,-484.430722,0.00021918,2]
[419088745,1774859445207,-484.430722,0.00021918,2]
[419088746,1774859445217,-484.430722,0.00021918,2]
[419088747,1774859445227,-484.430722,0.00021918,2]
[419088748,1774859445237,-484.430722,0.00021918,2]
[419088749,1774859445248,-484.430722,0.00021918,2]
[419088750,1774859445258,-484.430722,0.00021918,2]
[419088751,1774859445269,-484.430722,0.00021918,2]
[419088752,1774859445279,-484.430722,0.00021918,2]
[419088753,1774859445289,-484.430722,0.00021918,2]
[419088754,1774859445299,-484.430722,0.00021918,2]
[419088755,1774859445310,-484.430722,0.00021918,2]
[419088756,1774859445320,-484.430722,0.00021918,2]
[419088757,1774859445330,-484.430722,0.00021918,2]
[419088758,1774859445340,-484.430722,0.00021918,2]
[419088759,1774859445350,-484.430722,0.00021918,2]
[419088760,1774859445361,-484.430722,0.00021918,2]
[419088761,1774859445371,-484.430722,0.00021918,2]
[419088762,1774859445381,-484.430725,0.00021918,2]
[419088763,1774859445391,-151.0,0.00021918,2]
[419088764,1774859445401,-151.0,0.00021918,2]
[419088765,1774859445411,-151.0,0.00021918,2]
[419088766,1774859445421,-151.0,0.00021918,2]
[419088767,1774859445432,-151.0,0.00021918,2]
[419088768,1774859445443,-151.0,0.00021918,2]
[419088769,1774859445453,-151.0,0.00021918,2]
[419088770,1774859445463,-151.0,0.00021918,2]
[419088771,1774859445473,-151.0,0.00021918,2]
[419088772,1774859445482,-156.385227,0.00021918,2]
[419088773,1774859445493,-151.0,0.00021918,2]
[419088774,1774859445503,-151.0,0.00021918,2]
[419088775,1774859445513,-151.0,0.00021918,2]
[419088776,1774859445523,-151.0,0.00021918,2]
[419088777,1774859445533,-151.0,0.00021918,2]
[419088778,1774859445543,-151.0,0.00021918,2]
[419088779,1774859445553,-151.0,0.00021918,2]
[419088780,1774859445563,-151.0,0.00021918,2]
[419088781,1774859445573,-151.0,0.00021918,2]
[419088782,1774859445583,-280.267342,0.00021918,2]
[419088783,1774859445593,-398.495825,0.00021918,2]
[419088784,1774859445603,-398.495825,0.00021918,2]
[419088785,1774859445613,-398.495825,0.00021918,2]
[419088786,1774859445622,-398.495825,0.00021918,2]
[419088787,1774859445632,-398.495825,0.00021918,2]
[419088788,1774859445641,-398.495825,0.00021918,2]
[419088789,1774859445652,-398.495825,0.00021918,2]
[419088790,1774859445663,-398.495825,0.00021918,2]
[419088791,1774859445672,-398.495825,0.00021918,2]
[419088792,1774859445683,-398.495825,0.00021918,2]
[419088793,1774859445693,-398.495825,0.00021918,2]
[419088794,1774859445703,-398.495825,0.00021918,2]
[419088795,1774859445713,-398.495825,0.00021918,2]
[419088796,1774859445723,-398.495825,0.00021918,2]
[419088797,1774859445733,-398.495825,0.00021918,2]
[419088798,1774859445744,-398.495825,0.00021918,2]
[419088799,1774859445754,-398.495825,0.00021918,2]
[419088800,1774859445764,-398.495825,0.00021918,2]
[419088801,1774859445774,-398.495825,0.00021918,2]
[419088802,1774859445784,-398.495828,0.00021918,2]
[419088803,1774859445794,-1200.460473,0.00021918,2]
[419088804,1774859445804,-1200.460473,0.00021918,2]
[419088805,1774859445814,-1200.460473,0.00021918,2]
[419088806,1774859445824,-1200.460473,0.00021918,2]
[419088807,1774859445834,-1200.460473,0.00021918,2]
[419088808,1774859445844,-1200.460473,0.00021918,2]
[419088809,1774859445854,-1200.460473,0.00021918,2]
[419088810,1774859445864,-1200.460473,0.00021918,2]
[419088811,1774859445874,-1200.460473,0.00021918,2]
[419088812,1774859445884,-1200.460473,0.00021918,2]
[419088813,1774859445895,-1200.460473,0.00021918,2]
[419088814,1774859445905,-1200.460473,0.00021918,2]
[419088815,1774859445915,-1200.460473,0.00021918,2]
[419088816,1774859445926,-1200.460473,0.00021918,2]
[419088817,1774859445936,-1200.460473,0.00021918,2]
[419088818,1774859445946,-1200.460473,0.00021918,2]
[419088819,1774859445955,-1200.460473,0.00021918,2]
[419088820,1774859445966,-1200.460473,0.00021918,2]
[419088821,1774859445975,-1200.460473,0.00021918,2]
[419088822,1774859445985,-1200.460476,0.00021918,2]
[419088823,1774859445995,-224.058151,0.00021918,2]
[419088824,1774859446005,-224.058151,0.00021918,2]
[419088825,1774859446015,-224.058151,0.00021918,2]
[419088826,1774859446025,-224.058151,0.00021918,2]
[419088827,1774859446035,-151.0,0.00021918,2]
[419088828,1774859446046,-224.058151,0.00021918,2]
[419088829,1774859446056,-151.0,0.00021918,2]
[419088830,1774859446066,-224.058151,0.00021918,2]
[419088831,1774859446076,-151.0,0.00021918,2]
[419088832,1774859446086,-224.058151,0.00021918,2]
[419088833,1774859446096,-151.0,0.00021918,2]
[419088834,1774859446106,-224.058151,0.00021918,2]
[419088835,1774859446117,-151.0,0.00021918,2]
[419088836,1774859446128,-224.058151,0.00021918,2]
[419088838,1774859446138,-151.0,0.00021918,2]
[419088839,1774859446148,-224.058151,0.00021918,2]
[419088840,1774859446159,-151.0,0.00021918,2]
[419088841,1774859446169,-151.0,0.00021918,2]
[419088842,1774859446179,-151.0,0.00021918,2]
[419088843,1774859446190,-151.0,0.00021918,2]
[419088844,1774859446201,-151.0,0.00021918,2]
[419088845,1774859446211,-151.0,0.00021918,2]
[419088846,1774859446221,-151.0,0.00021918,2]
[419088847,1774859446232,-151.0,0.00021918,2]
[419088848,1774859446242,-151.0,0.00021918,2]
[419088849,1774859446252,-151.0,0.00021918,2]
[419088850,1774859446262,-151.0,0.00021918,2]
[419088851,1774859446273,-237.222726,0.00021918,2]
[419088852,1774859446283,-151.0,0.00021918,2]
[419088853,1774859446293,-151.0,0.00021918,2]
[419088854,1774859446383,-151.0,0.00021918,2]
[419088855,1774859446403,-151.0,0.00021918,2]
[419088856,1774859446413,-151.0,0.00021918,2]
[419088857,1774859446424,-224.058151,0.00021918,2]
[419088858,1774859446433,-151.0,0.00021918,2]
[419088859,1774859446444,-224.058151,0.00021918,2]
[419088860,1774859446454,-151.0,0.00021918,2]
[419088861,1774859446464,-224.058151,0.00021918,2]
[419088862,1774859446474,-151.0,0.00021918,2]
[419088863,1774859446484,-224.058151,0.00021918,2]
[419088864,1774859446493,-224.058151,0.00021918,2]
[419088865,1774859446503,-151.0,0.00021918,2]
[419088866,1774859446513,-151.0,0.00021918,2]
[419088867,1774859446523,-224.058151,0.00021918,2]
[419088868,1774859446533,-151.0,0.00021918,2]
[419088869,1774859446543,-151.0,0.00021918,2]
[419088870,1774859446553,-224.058151,0.00021918,2]
[419088871,1774859446563,-151.0,0.00021918,2]
[419088872,1774859446573,-224.058151,0.00021918,2]
[419088873,1774859446583,-224.058151,0.00021918,2]
[419088874,1774859446594,-151.0,0.00021918,2]
[419088875,1774859446603,-224.058155,0.00021918,2]
[419088876,1774859446614,-287.579248,0.00021918,2]
[419088877,1774859446624,-254.700093,0.00021918,2]
[419088878,1774859446634,-254.700093,0.00021918,2]
[419088879,1774859446645,-254.700093,0.00021918,2]
[419088880,1774859446655,-254.700093,0.00021918,2]
[419088881,1774859446666,-254.700093,0.00021918,2]
[419088882,1774859446676,-254.700093,0.00021918,2]
[419088883,1774859446686,-254.700093,0.00021918,2]
[419088884,1774859446696,-254.700093,0.00021918,2]
[419088885,1774859446706,-254.700093,0.00021918,2]
[419088886,1774859446717,-254.700093,0.00021918,2]
[419088887,1774859446727,-254.700093,0.00021918,2]
[419088888,1774859446738,-254.700093,0.00021918,2]
[419088889,1774859446748,-254.700093,0.00021918,2]
[419088890,1774859446758,-254.700093,0.00021918,2]
[419088891,1774859446768,-254.700093,0.00021918,2]
[419088892,1774859446778,-254.700093,0.00021918,2]
[419088893,1774859446788,-254.700093,0.00021918,2]
[419088894,1774859446798,-254.700093,0.00021918,2]
[419088895,1774859446808,-254.700093,0.00021918,2]
[419088896,1774859446819,-254.700101,0.00021918,2]
[419088897,1774859446829,-280.8325,0.00021918,2]
[419088898,1774859446839,-280.8325,0.00021918,2]
[419088899,1774859446849,-280.8325,0.00021918,2]
[419088900,1774859446860,-280.8325,0.00021918,2]
[419088901,1774859446870,-280.8325,0.00021918,2]
[419088902,1774859446880,-280.8325,0.00021918,2]
[419088903,1774859446890,-280.8325,0.00021918,2]
[419088904,1774859446901,-40.7031992,0.00021918,2]
[419088906,1774859446943,-240.1293008,0.00021918,2]
[419088908,1774859446953,-280.8325,0.00021918,2]
[419088910,1774859446963,-280.8325,0.00021918,2]
[419088911,1774859446973,-280.8325,0.00021918,2]
[419088913,1774859446982,-280.8325,0.00021918,2]
[419088914,1774859446992,-280.8325,0.00021918,2]
[419088915,1774859447002,-280.8325,0.00021918,2]
[419088916,1774859447012,-280.8325,0.00021918,2]
[419088917,1774859447021,-280.8325,0.00021918,2]
[419088918,1774859447032,-280.8325,0.00021918,2]
[419088919,1774859447042,-280.8325,0.00021918,2]
[419088920,1774859447053,-280.8325,0.00021918,2]
[419088921,1774859447063,-280.8325,0.00021918,2]
[419088922,1774859447073,-298.851574,0.00021918,2]
[419088923,1774859447083,-323.076928,0.00021918,2]
[419088924,1774859447093,-323.076928,0.00021918,2]
[419088926,1774859447103,-323.076928,0.00021918,2]
[419088927,1774859447113,-323.076928,0.00021918,2]
[419088929,1774859447123,-323.076928,0.00021918,2]
[419088930,1774859447133,-323.076928,0.00021918,2]
[419088932,1774859447143,-323.076928,0.00021918,2]
[419088933,1774859447153,-323.076928,0.00021918,2]
[419088934,1774859447163,-323.076928,0.00021918,2]
[419088935,1774859447173,-183.3367732,0.00021918,2]
[419088936,1774859447186,-139.7401548,0.00021918,2]
[419088937,1774859447196,-323.076928,0.00021918,2]
[419088938,1774859447206,-323.076928,0.00021918,2]
[419088939,1774859447217,-323.076928,0.00021918,2]
[419088940,1774859447227,-323.076928,0.00021918,2]
[419088941,1774859447237,-323.076928,0.00021918,2]
[419088942,1774859447249,-323.076928,0.00021918,2]
[419088943,1774859447259,-323.076928,0.00021918,2]
[419088944,1774859447269,-323.076928,0.00021918,2]
[419088945,1774859447279,-323.076928,0.00021918,2]
[419088946,1774859447289,-323.07692754,0.00021918,2]
[419088947,1774859447300,-1579.337711,0.00021918,2]
[419088948,1774859447310,-402.65285303,0.00021918,2]
[419088949,1774859447342,-468.942,0.00021918,2]
[419088950,1774859447361,-707.74285797,0.00021918,2]
[419088951,1774859447375,-471.93660956,0.00021918,2]
[419088952,1774859447389,-1107.40110144,0.00021918,2]
[419088953,1774859447401,-1579.337711,0.00021918,2]
[419088954,1774859447415,-569.49448847,0.00021918,2]
[419088955,1774859447591,-276.5150003,0.00021918,2]
[419088956,1774859447605,-733.32822223,0.00021918,2]
[419088957,1774859447619,-1579.337711,0.00021918,2]
[419088958,1774859447634,-1579.337711,0.00021918,2]
[419088959,1774859447648,-1579.337711,0.00021918,2]
[419088960,1774859447660,-1579.337711,0.00021918,2]
[419088961,1774859447670,-1579.337711,0.00021918,2]
[419088962,1774859447681,-1579.337711,0.00021918,2]
[419088963,1774859447692,-1579.337711,0.00021918,2]
[419088964,1774859447705,-1579.337711,0.00021918,2]
[419088965,1774859447720,-1579.337711,0.00021918,2]
[419088966,1774859447731,-1579.337711,0.00021918,2]
[419088967,1774859447743,-1579.337711,0.00021918,2]
[419088968,1774859447756,-1579.337711,0.00021918,2]
[419088969,1774859447770,-1579.337711,0.00021918,2]
[419088970,1774859447783,-151.0,0.00021918,2]
[419088971,1774859447795,-1579.337711,0.00021918,2]
[419088972,1774859447807,-151.0,0.00021918,2]
[419088973,1774859447818,-1579.337707,0.00021918,2]
[419088974,1774859447829,-165.824508,0.00021918,2]
[419088975,1774859447840,-251.196149,0.00021918,2]
[419088976,1774859447852,-251.196149,0.00021918,2]
[419088977,1774859447864,-251.196149,0.00021918,2]
[419088978,1774859447877,-251.196149,0.00021918,2]
[419088979,1774859447890,-251.196149,0.00021918,2]
[419088980,1774859447903,-251.196149,0.00021918,2]
[419088981,1774859447915,-251.196149,0.00021918,2]
[419088982,1774859447927,-251.196149,0.00021918,2]
[419088983,1774859447938,-251.196149,0.00021918,2]
[419088984,1774859447950,-251.196149,0.00021918,2]
[419088985,1774859447961,-251.196149,0.00021918,2]
[419088986,1774859447973,-251.196149,0.00021918,2]
[419088987,1774859447987,-251.196149,0.00021918,2]
[419088988,1774859447998,-251.196149,0.00021918,2]
[419088989,1774859448010,-251.196149,0.00021918,2]
[419088990,1774859448022,-251.196149,0.00021918,2]